fUSD/lending_fUSD_20240220
["ID","MTS","AMOUNT","RATE_DAILY","PERIOD"]
[314572073,1708428718817,-500.0,0.00039726,6]
[314572074,1708428718831,-519.67,0.00039726,6]
[314572075,1708428718846,-500.0,0.00039726,6]
[314572076,1708428718862,-661.83,0.00039726,6]
[314572077,1708428718876,-1640.57,0.00039726,6]
[314572078,1708428718894,-1385.07,0.00039726,6]
[314572079,1708428718909,-516.63,0.00039726,6]
[314572080,1708428718924,-168.16779983,0.00039726,6]
[314572081,1708428718939,-500.0,0.00039726,6]
[314572082,1708428718954,-2406.39,0.00039726,6]
[314572083,1708428718968,-1286.92,0.00039726,6]
[314572084,1708428718982,-1144.29,0.00039726,6]
[314572085,1708428718996,-755.77,0.00039726,6]
[314572086,1708428719011,-538.32,0.00039726,6]
[314572087,1708428719026,-2001.39,0.00039726,6]
[314572088,1708428719040,-500.0,0.00039726,6]
[314572089,1708428719054,-1514.61,0.00039726,6]
[314572090,1708428719258,-500.0,0.00039726,6]
[314572091,1708428719268,-841.62,0.00039726,6]
[314572092,1708428719278,-896.66,0.00039726,2]
[314572093,1708428719288,-759.4,0.00039726,6]
[314572094,1708428719298,-955.19,0.00039726,6]
[314572095,1708428719307,-1219.95,0.00039726,6]
[314572096,1708428719318,-4914.38,0.00039726,6]
[314572097,1708428719328,-1960.91,0.00039726,6]
[314572098,1708428719338,-1232.52,0.00039726,6]
[314572099,1708428719348,-632.25,0.00039726,6]
[314572100,1708428719358,-2283.84,0.00039726,6]
[314572101,1708428719368,-2168.59,0.00039726,6]
[314572102,1708428719380,-20540.21,0.00039726,6]
[314572103,1708428719391,-500.0,0.00039726,6]
[314572104,1708428719400,-7298.9,0.00039726,6]
[314572105,1708428719410,-2164.58,0.00039726,6]
[314572106,1708428719420,-500.0,0.00039726,6]
[314572107,1708428719429,-840.87,0.00039726,6]
[314572108,1708428719440,-750.12,0.00039726,6]
[314572109,1708428719449,-881.59,0.00039726,6]
[314572110,1708428719458,-1166.03,0.00039726,6]
[314572111,1708428719468,-501.87,0.00039726,6]
[314572112,1708428719477,-4997.98,0.00039726,6]
[314572113,1708428719487,-880.32,0.00039726,6]
[314572114,1708428719497,-500.0,0.00039726,6]
[314572115,1708428719506,-690.76,0.00039726,6]
[314572116,1708428719516,-1448.63,0.00039726,6]
[314572117,1708428719525,-905.43,0.00039726,6]
[314572118,1708428719535,-500.0,0.00039726,6]
[314572119,1708428719544,-500.0,0.00039726,6]
[314572120,1708428719553,-1005.05,0.00039726,6]
[314572121,1708428719563,-3198.4,0.00039726,6]
[314572122,1708428719572,-759.38,0.00039726,6]
[314572123,1708428719582,-500.0,0.00039726,6]
[314572124,1708428719591,-500.0,0.00039726,6]
[314572125,1708428719600,-1446.16,0.00039726,6]
[314572126,1708428719610,-649.83,0.00039726,6]
[314572127,1708428719623,-1827.29,0.00039726,6]
[314572128,1708428719633,-622.17,0.00039726,6]
[314572129,1708428719642,-838.08,0.00039726,6]
[314572130,1708428719652,-678.18,0.00039726,6]
[314572131,1708428719664,-727.92,0.00039726,6]
[314572132,1708428719674,-907.49,0.00039726,6]
[314572133,1708428719684,-6265.46,0.00039726,6]
[314572134,1708428719693,-594.51,0.00039726,6]
[314572135,1708428719703,-859.39,0.00039726,6]
[314572136,1708428719712,-298.14795692,0.00039726,6]
[314572137,1708428719721,-866.49,0.00039726,6]
[314572138,1708428719731,-3587.46,0.00039726,6]
[314572139,1708428719745,-1001.76,0.00039726,6]
[314572140,1708428719755,-600.49,0.00039726,6]
[314572141,1708428719765,-737.98,0.00039726,6]
[314572142,1708428719775,-1615.46,0.00039726,6]
[314572143,1708428719784,-2658.71,0.00039726,6]
[314572144,1708428719794,-3233.84,0.00039726,6]
[314572145,1708428719803,-804.08,0.00039726,6]
[314572146,1708428719813,-759.27,0.00039726,6]
[314572147,1708428719823,-500.0,0.00039726,6]
[314572148,1708428719832,-1025.73,0.00039726,6]
[314572149,1708428719842,-1374.99,0.00039726,6]
[314572150,1708428719851,-633.58,0.00039726,6]
[314572151,1708428719860,-654.59,0.00039726,6]
[314572152,1708428719874,-720.34,0.00039726,6]
[314572153,1708428719884,-750.78,0.00039726,6]
[314572154,1708428719893,-1574.12,0.00039726,6]
[314572155,1708428719902,-552.85,0.00039726,6]
[314572156,1708428719912,-1149.16,0.00039726,6]
[314572157,1708428719921,-810.09,0.00039726,6]
[314572158,1708428719931,-2476.69,0.00039726,6]
[314572159,1708428719940,-1155.56,0.00039726,6]
[314572160,1708428719949,-1254.68,0.00039726,6]
[314572161,1708428719959,-1124.17,0.00039726,6]
[314572162,1708428719969,-1076.93,0.00039726,6]
[314572163,1708428719979,-590.14,0.00039726,6]
[314572164,1708428719989,-768.15,0.00039726,6]
[314572165,1708428719999,-621.95,0.00039726,6]
[314572166,1708428720009,-1180.17,0.00039726,6]
[314572167,1708428720018,-939.54,0.00039726,6]
[314572168,1708428720028,-939.56,0.00039726,6]
[314572169,1708428720037,-1613.29,0.00039726,6]
[314572170,1708428720047,-686.66,0.00039726,6]
[314572171,1708428720057,-840.36,0.00039726,6]
[314572172,1708428720066,-640.13,0.00039726,6]
[314572173,1708428720076,-3991.12,0.00039726,6]
[314572174,1708428720086,-520.0,0.00039726,6]
[314572175,1708428720095,-1023.38,0.00039726,6]
[314572176,1708428720105,-692.3,0.00039726,6]
[314572177,1708428720114,-1621.7,0.00039726,6]
[314572178,1708428720127,-2486.09,0.00039726,6]
[314572179,1708428720136,-8295.38,0.00039726,6]
[314572180,1708428720145,-841.07,0.00039726,6]
[314572181,1708428720154,-1744.2,0.00039726,6]
[314572182,1708428720163,-1344.84,0.00039726,6]
[314572183,1708428720173,-673.36,0.00039726,6]
[314572184,1708428720183,-500.0,0.00039726,6]
[314572185,1708428720192,-685.99,0.00039726,6]
[314572186,1708428720202,-500.0,0.00039726,6]
[314572187,1708428720211,-1329.24,0.00039726,6]
[314572188,1708428720221,-2449.79,0.00039726,6]
[314572189,1708428720230,-500.0,0.00039726,6]
[314572190,1708428720240,-856.56,0.00039726,6]
[314572191,1708428720249,-500.0,0.00039726,6]
[314572192,1708428720259,-559.34,0.00039726,6]
[314572193,1708428720268,-500.0,0.00039726,6]
[314572194,1708428720277,-504.39,0.00039726,6]
[314572195,1708428720287,-500.0,0.00039726,6]
[314572196,1708428720297,-771.78,0.00039726,6]
[314572197,1708428720307,-500.0,0.00039726,6]
[314572198,1708428720316,-500.0,0.00039726,6]
[314572199,1708428720325,-682.05,0.00039726,6]
[314572200,1708428720335,-547.61,0.00039726,6]
[314572201,1708428720344,-1060.07,0.00039726,6]
[314572202,1708428720353,-828.05,0.00039726,6]
[314572203,1708428720362,-628.37,0.00039726,6]
[314572204,1708428720374,-887.17,0.00039726,6]
[314572205,1708428720382,-673.43,0.00039726,6]
[314572206,1708428720392,-734.03,0.00039726,2]
[314572207,1708428720401,-1738.82,0.00039726,6]
[314572208,1708428720410,-500.0,0.00039726,6]
[314572209,1708428720419,-779.08,0.00039726,6]
[314572210,1708428720428,-543.22,0.00039726,6]
[314572211,1708428720437,-1012.35,0.00039726,6]
[314572212,1708428720447,-807.34,0.00039726,6]
[314572213,1708428720456,-684.48,0.00039726,6]
[314572214,1708428720465,-1647.99,0.00039726,6]
[314572215,1708428720475,-986.67,0.00039726,6]
[314572216,1708428720485,-2456.88,0.00039726,6]
[314572217,1708428720494,-1042.87,0.00039726,6]
[314572218,1708428720503,-1470.47,0.00039726,6]
[314572219,1708428720512,-2585.94,0.00039726,6]
[314572220,1708428720521,-500.0,0.00039726,2]
[314572221,1708428720531,-153.52,0.00039726,2]
[314572222,1708428720540,-157.0212031,0.00039798,16]
[314572223,1708428720549,-500.0,0.000398,2]
[314572224,1708428720559,-500.0,0.000398,2]
[314572225,1708428720567,-500.0,0.000398,2]
[314572226,1708428720577,-500.0,0.000398,2]
[314572227,1708428720586,-500.0,0.000398,2]
[314572228,1708428720595,-500.0,0.000398,2]
[314572229,1708428720604,-500.0,0.000398,2]
[314572230,1708428720614,-500.0,0.000398,2]
[314572231,1708428720625,-500.0,0.000398,2]
[314572232,1708428720634,-500.0,0.000398,2]
[314572233,1708428720643,-500.0,0.000398,2]
[314572234,1708428720653,-500.0,0.000398,2]
[314572235,1708428720663,-500.0,0.000398,2]
[314572236,1708428720672,-500.0,0.000398,2]
[314572237,1708428720681,-500.0,0.000398,2]
[314572238,1708428720690,-500.0,0.000398,2]
[314572239,1708428720699,-500.0,0.000398,2]
[314572240,1708428720710,-500.0,0.000398,2]
[314572241,1708428720718,-500.0,0.000398,2]
[314572242,1708428720727,-500.0,0.000398,2]
[314572243,1708428720738,-500.0,0.000398,2]
[314572244,1708428720747,-500.0,0.000398,2]
[314572245,1708428720757,-500.0,0.000398,2]
[314572246,1708428720766,-500.0,0.000398,2]
[314572247,1708428720775,-500.0,0.000398,2]
[314572248,1708428720784,-500.0,0.000398,2]
[314572249,1708428720794,-500.0,0.000398,2]
[314572250,1708428720803,-500.0,0.000398,2]
[314572251,1708428720812,-500.0,0.000398,2]
[314572252,1708428720821,-500.0,0.000398,2]
[314572253,1708428720831,-500.0,0.000398,2]
[314572254,1708428720840,-500.0,0.000398,2]
[314572255,1708428720849,-500.0,0.000398,2]
[314572256,1708428720858,-500.0,0.000398,2]
[314572257,1708428720867,-500.0,0.000398,2]
[314572258,1708428720878,-500.0,0.000398,2]
[314572259,1708428720888,-2180.59972828,0.000398,7]
[314572260,1708428720897,-36190.84,0.000398,7]
[314572261,1708428720906,-2146.01,0.000398,3]
[314572262,1708428720915,-2146.01,0.000398,3]
[314572263,1708428720924,-2146.01,0.000398,3]
[314572264,1708428720934,-2146.01,0.000398,3]
[314572265,1708428720943,-2146.01,0.000398,3]
[314572266,1708428720952,-2146.01,0.000398,3]
[314572267,1708428720962,-2146.01,0.000398,3]
[314572268,1708428720971,-2146.01,0.000398,3]
[314572269,1708428720981,-2146.01,0.000398,3]
[314572270,1708428720990,-2146.01,0.000398,3]
[314572271,1708428720999,-2146.01,0.000398,3]
[314572272,1708428721009,-2146.01,0.000398,3]
[314572273,1708428721018,-2146.01,0.000398,3]
[314572274,1708428721028,-2146.01,0.000398,3]
[314572275,1708428721037,-2146.01,0.000398,3]
[314572276,1708428721047,-2146.01,0.000398,3]
[314572277,1708428721056,-2146.01,0.000398,3]
[314572278,1708428721066,-2146.01,0.000398,3]
[314572279,1708428721075,-2146.01,0.000398,3]
[314572280,1708428721084,-2146.01,0.000398,3]
[314572281,1708428721094,-153.19,0.000398,3]
[314572282,1708428721103,-153.19,0.000398,3]
[314572283,1708428721113,-153.19,0.000398,3]
[314572284,1708428721124,-2859.22,0.00039821,6]
[314572285,1708428721134,-1223.88,0.00039821,6]
[314572286,1708428721144,-153.0,0.00039837,7]
[314572287,1708428721153,-1000.0,0.0003984,2]
[314572288,1708428721163,-280.0,0.0003985,2]
[314572289,1708428721172,-152.0,0.00039867,5]
[314572290,1708428721182,-1000.0,0.00039872,2]
[314572291,1708428721191,-57038.05,0.000399,7]
[314572292,1708428721200,-1000.0,0.00039904,2]
[314572293,1708428721210,-1000.0,0.00039936,2]
[314572294,1708428721219,-1198.896169,0.00039937,5]
[314572295,1708428721228,-1000.0,0.00039968,2]
[314572296,1708428721237,-153.0,0.00039974,7]
[314572297,1708428721247,-62843.66288824,0.00039997,2]
[314572298,1708428721256,-10644.87866219,0.00039999,5]
[314572299,1708428721266,-500.0,0.00039999,31]
[314572300,1708428721276,-384.60101768,0.00039999,31]
[314572301,1708428721285,-386.40515902,0.00039999,31]
[314572302,1708428721295,-194.03815021,0.00039999,31]
[314572303,1708428721304,-500.0,0.00039999,31]
[314572304,1708428721314,-453.58800404,0.00039999,31]
[314572305,1708428721324,-363.5211379,0.00039999,31]
[314572306,1708428721333,-522.15406288,0.00039999,31]
[314572307,1708428721343,-200.68661446,0.00039999,31]
[314572308,1708428721353,-164.82900757,0.00039999,31]
[314572309,1708428721363,-100000.0,0.0004,20]
[314572310,1708428721373,-369.9831634,0.0004,2]
[314572311,1708428721383,-207.82988552,0.0004,2]
[314572312,1708428721392,-4233.92664086,0.0004,2]
[314572313,1708428721401,-419.67,0.0004,14]
[314572314,1708428721411,-1149.65339637,0.0004,2]
[314572315,1708428721421,-513.34736062,0.0004,2]
[314572316,1708428721430,-9323.2239032,0.0004,2]
[314572317,1708428721583,-5383.55577663,0.0004,2]
[314572318,1708428721592,-1514.12843356,0.0004,2]
[314572319,1708428721601,-3509.46669468,0.0004,2]
[314572320,1708428721611,-150.0,0.0004,2]
[314572321,1708428721622,-32500.0,0.0004,4]
[314572322,1708428721631,-5000.0,0.0004,10]
[314572323,1708428721641,-5000.0,0.0004,10]
[314572324,1708428721651,-5000.0,0.0004,10]
[314572325,1708428721661,-500.0,0.0004,10]
[314572326,1708428721672,-155.0,0.0004,4]
[314572327,1708428721682,-20290.08174149,0.0004,7]
[314572328,1708428721691,-984.0,0.0004,10]
[314572329,1708428721702,-938.0,0.0004,10]
[314572330,1708428721712,-447.88010286,0.0004,4]
[314572331,1708428721721,-1051.67460265,0.0004,2]
[314572332,1708428721731,-5000.0,0.0004,8]
[314572333,1708428721741,-1213.70952032,0.0004,4]
[314572334,1708428721750,-324.12546429,0.0004,7]
[314572335,1708428721761,-6238.0487101,0.0004,14]
[314572336,1708428721771,-1497.30141752,0.0004,10]
[314572337,1708428721781,-427.03278544,0.0004,2]
[314572338,1708428721790,-2003.4231,0.0004,5]
[314572339,1708428721800,-2000.0,0.0004,5]
[314572340,1708428721811,-395787.70566881,0.0004,6]
[314572341,1708428721821,-255.0,0.0004,12]
[314572342,1708428721831,-255.0,0.0004,12]
[314572343,1708428721841,-500000.0,0.0004,4]
[314572344,1708428721851,-255.0,0.0004,12]
[314572345,1708428721860,-150.0,0.0004,12]
[314572346,1708428721872,-641.09,0.0004,2]
[314572347,1708428721882,-500.0,0.0004,6]
[314572348,1708428721891,-1000.0,0.0004,2]
[314572349,1708428721901,-255.0,0.0004,12]
[314572350,1708428721911,-500.0,0.0004,6]
[314572351,1708428721920,-512.86,0.0004,6]
[314572352,1708428721930,-1992.717286,0.0004,12]
[314572353,1708428721939,-500.0,0.0004,6]
[314572354,1708428721948,-500.0,0.0004,6]
[314572355,1708428721958,-1116.86,0.0004,2]
[314572356,1708428721968,-962.0,0.0004,2]
[314572357,1708428721978,-500.0,0.0004,6]
[314572358,1708428721988,-1157.69,0.0004,6]
[314572359,1708428721997,-500.0,0.0004,6]
[314572360,1708428722006,-500.0,0.0004,6]
[314572361,1708428722016,-632.15,0.0004,6]
[314572362,1708428722026,-500.0,0.0004,6]
[314572363,1708428722035,-500.0,0.0004,6]
[314572364,1708428722045,-500.0,0.0004,6]
[314572365,1708428722055,-255.0,0.0004,12]
[314572366,1708428722064,-565.54,0.0004,6]
[314572367,1708428722074,-612.93114928,0.0004,6]
[314572368,1708428722084,-507.0,0.0004,6]
[314572369,1708428722094,-500.0,0.0004,6]
[314572370,1708428722103,-500.0,0.0004,6]
[314572371,1708428722114,-500.0,0.0004,6]
[314572372,1708428722125,-500.0,0.0004,6]
[314572373,1708428722135,-507.42,0.0004,6]
[314572374,1708428722145,-597.28226993,0.0004,6]
[314572375,1708428722155,-799.18,0.0004,6]
[314572376,1708428722164,-521.8,0.0004,6]
[314572377,1708428722173,-157.38,0.0004,6]
[314572378,1708428722183,-500.0,0.0004,6]
[314572379,1708428722193,-500.0,0.0004,6]
[314572380,1708428722203,-506.62,0.0004,6]
[314572381,1708428722214,-255.0,0.0004,12]
[314572382,1708428722223,-500.0,0.0004,6]
[314572383,1708428722233,-878.5,0.0004,6]
[314572384,1708428722243,-590.31,0.0004,6]
[314572385,1708428722253,-649.42,0.0004,6]
[314572386,1708428722263,-500.0,0.0004,6]
[314572387,1708428722272,-657.53,0.0004,6]
[314572388,1708428722281,-561.53,0.0004,6]
[314572389,1708428722291,-510.94,0.0004,6]
[314572390,1708428722301,-2751.38,0.0004,6]
[314572391,1708428722311,-537.42,0.0004,6]
[314572392,1708428722321,-500.0,0.0004,6]
[314572393,1708428722330,-1597.23,0.0004,6]
[314572394,1708428722340,-500.0,0.0004,6]
[314572395,1708428722350,-1371.89,0.0004,6]
[314572396,1708428722359,-639.83,0.0004,6]
[314572397,1708428722369,-500.0,0.0004,6]
[314572398,1708428722380,-2100.88,0.0004,6]
[314572399,1708428722390,-1430.51,0.0004,6]
[314572400,1708428722399,-500.0,0.0004,6]
[314572401,1708428722408,-519.67,0.0004,6]
[314572402,1708428722418,-500.0,0.0004,6]
[314572403,1708428722428,-661.83,0.0004,6]
[314572404,1708428722437,-1640.57,0.0004,6]
[314572405,1708428722447,-1385.07,0.0004,6]
[314572406,1708428722456,-516.63,0.0004,6]
[314572407,1708428722466,-500.0,0.0004,6]
[314572408,1708428722476,-2406.39,0.0004,6]
[314572409,1708428722485,-1286.92,0.0004,6]
[314572410,1708428722494,-1144.29,0.0004,6]
[314572411,1708428722504,-755.77,0.0004,6]
[314572412,1708428722514,-538.32,0.0004,6]
[314572413,1708428722524,-2001.39,0.0004,6]
[314572414,1708428722534,-500.0,0.0004,6]
[314572415,1708428722545,-1514.61,0.0004,6]
[314572416,1708428722555,-500.0,0.0004,6]
[314572417,1708428722565,-841.62,0.0004,6]
[314572418,1708428722575,-896.66,0.0004,2]
[314572419,1708428722585,-759.4,0.0004,6]
[314572420,1708428722594,-955.19,0.0004,6]
[314572421,1708428722604,-1219.95,0.0004,6]
[314572422,1708428722614,-4914.38,0.0004,6]
[314572423,1708428722625,-1960.91,0.0004,6]
[314572424,1708428722635,-1232.52,0.0004,6]
[314572425,1708428722645,-632.25,0.0004,6]
[314572426,1708428722655,-2283.84,0.0004,6]
[314572427,1708428722667,-2168.59,0.0004,6]
[314572428,1708428722676,-20540.21,0.0004,6]
[314572429,1708428722686,-500.0,0.0004,6]
[314572430,1708428722695,-7298.9,0.0004,6]
[314572431,1708428722705,-2164.58,0.0004,6]
[314572432,1708428722715,-500.0,0.0004,6]
[314572433,1708428722724,-840.87,0.0004,6]
[314572434,1708428722735,-750.12,0.0004,6]
[314572435,1708428722744,-881.59,0.0004,6]
[314572436,1708428722755,-1166.03,0.0004,6]
[314572437,1708428722765,-501.87,0.0004,6]
[314572438,1708428722775,-4997.98,0.0004,6]
[314572439,1708428722785,-880.32,0.0004,6]
[314572440,1708428722794,-500.0,0.0004,6]
[314572441,1708428722804,-690.76,0.0004,6]
[314572442,1708428722814,-1448.63,0.0004,6]
[314572443,1708428722825,-905.43,0.0004,6]
[314572444,1708428722834,-552.58882499,0.0004,6]
[314572445,1708428722844,-500.0,0.0004,6]
[314572446,1708428722853,-1005.05,0.0004,6]
[314572447,1708428722863,-3198.4,0.0004,6]
[314572448,1708428722873,-759.38,0.0004,6]
[314572449,1708428722883,-548.11904815,0.0004,6]
[314572450,1708428722892,-500.0,0.0004,6]
[314572451,1708428722902,-1446.16,0.0004,6]
[314572452,1708428722911,-649.83,0.0004,6]
[314572453,1708428722921,-1827.29,0.0004,6]
[314572454,1708428722931,-622.17,0.0004,6]
[314572455,1708428722941,-838.08,0.0004,6]
[314572456,1708428722951,-678.18,0.0004,6]
[314572457,1708428722961,-727.92,0.0004,6]
[314572458,1708428722971,-907.49,0.0004,6]
[314572459,1708428722981,-6265.46,0.0004,6]
[314572460,1708428722990,-255.0,0.0004,12]
[314572461,1708428722999,-859.39,0.0004,6]
[314572462,1708428723009,-866.49,0.0004,6]
[314572463,1708428723019,-3587.46,0.0004,6]
[314572464,1708428723029,-1001.76,0.0004,6]
[314572465,1708428723039,-600.49,0.0004,6]
[314572466,1708428723049,-737.98,0.0004,6]
[314572467,1708428723058,-1615.46,0.0004,6]
[314572468,1708428723068,-3233.84,0.0004,6]
[314572469,1708428723078,-2658.71,0.0004,6]
[314572470,1708428723088,-804.08,0.0004,6]
[314572471,1708428723097,-759.27,0.0004,6]
[314572472,1708428723107,-500.0,0.0004,6]
[314572473,1708428723118,-1025.73,0.0004,6]
[314572474,1708428723130,-1374.99,0.0004,6]
[314572475,1708428723140,-633.58,0.0004,6]
[314572476,1708428723150,-654.59,0.0004,6]
[314572477,1708428723159,-720.34,0.0004,6]
[314572478,1708428723169,-1574.12,0.0004,6]
[314572479,1708428723178,-750.78,0.0004,6]
[314572480,1708428723189,-552.85,0.0004,6]
[314572481,1708428723198,-1149.16,0.0004,6]
[314572482,1708428723207,-810.09,0.0004,6]
[314572483,1708428723218,-2476.69,0.0004,6]
[314572484,1708428723228,-1155.56,0.0004,6]
[314572485,1708428723237,-1254.68,0.0004,6]
[314572486,1708428723246,-1124.17,0.0004,6]
[314572487,1708428723256,-1076.93,0.0004,6]
[314572488,1708428723266,-590.14,0.0004,6]
[314572489,1708428723275,-768.15,0.0004,6]
[314572490,1708428723285,-1637.41448152,0.0004,4]
[314572491,1708428723295,-621.95,0.0004,6]
[314572492,1708428723305,-1180.17,0.0004,6]
[314572493,1708428723314,-939.54,0.0004,6]
[314572494,1708428723325,-939.56,0.0004,6]
[314572495,1708428723335,-1613.29,0.0004,6]
[314572496,1708428723344,-686.66,0.0004,6]
[314572497,1708428723354,-840.36,0.0004,6]
[314572498,1708428723364,-640.13,0.0004,6]
[314572499,1708428723376,-3991.12,0.0004,6]
[314572500,1708428723386,-520.0,0.0004,6]
[314572501,1708428723395,-1023.38,0.0004,6]
[314572502,1708428723405,-692.3,0.0004,6]
[314572503,1708428723414,-1621.7,0.0004,6]
[314572504,1708428723423,-2486.09,0.0004,6]
[314572505,1708428723432,-8295.38,0.0004,6]
[314572506,1708428723441,-841.07,0.0004,6]
[314572507,1708428723451,-1744.2,0.0004,6]
[314572508,1708428723461,-1000.0,0.0004,2]
[314572509,1708428723471,-1344.84,0.0004,6]
[314572510,1708428723480,-673.36,0.0004,6]
[314572511,1708428723490,-500.0,0.0004,6]
[314572512,1708428723499,-685.99,0.0004,6]
[314572513,1708428723508,-500.0,0.0004,6]
[314572514,1708428723518,-1329.24,0.0004,6]
[314572515,1708428723527,-2449.79,0.0004,6]
[314572516,1708428723536,-151.58837715,0.0004,6]
[314572517,1708428723546,-500.0,0.0004,6]
[314572518,1708428723556,-856.56,0.0004,6]
[314572519,1708428723565,-559.34,0.0004,6]
[314572520,1708428723574,-504.39,0.0004,6]
[314572521,1708428723584,-500.0,0.0004,6]
[314572522,1708428723594,-500.0,0.0004,6]
[314572523,1708428723604,-771.78,0.0004,6]
[314572524,1708428723613,-500.0,0.0004,6]
[314572525,1708428723625,-500.0,0.0004,6]
[314572526,1708428723634,-682.05,0.0004,6]
[314572527,1708428723644,-547.61,0.0004,6]
[314572528,1708428723654,-1060.07,0.0004,6]
[314572529,1708428723666,-828.05,0.0004,6]
[314572530,1708428723675,-628.37,0.0004,6]
[314572531,1708428723686,-887.17,0.0004,6]
[314572532,1708428723698,-673.43,0.0004,6]
[314572533,1708428723708,-734.03,0.0004,2]
[314572534,1708428723718,-1738.82,0.0004,6]
[314572535,1708428723728,-500.0,0.0004,6]
[314572536,1708428723738,-779.08,0.0004,6]
[314572537,1708428723747,-543.22,0.0004,6]
[314572538,1708428723757,-1012.35,0.0004,6]
[314572539,1708428723767,-807.34,0.0004,6]
[314572540,1708428723776,-684.48,0.0004,6]
[314572541,1708428723785,-1647.99,0.0004,6]
[314572542,1708428723795,-986.67,0.0004,6]
[314572543,1708428723805,-2456.88,0.0004,6]
[314572544,1708428723814,-1042.87,0.0004,6]
[314572545,1708428723824,-1470.47,0.0004,6]
[314572546,1708428723834,-2585.94,0.0004,6]
[314572547,1708428723844,-192.07814905,0.0004,4]
[314572548,1708428723854,-387.30082206,0.0004001,15]
[314572549,1708428723864,-13346.6814356,0.00040031,2]
[314572550,1708428723877,-500.0,0.00040039,30]
[314572551,1708428723887,-150.0,0.00040039,30]
[314572552,1708428723896,-155.0,0.00040055,2]
[314572553,1708428723906,-200000.0,0.00040058,16]
[314572554,1708428723916,-2859.22,0.00040095,6]
[314572555,1708428723926,-1223.88,0.00040095,6]
[314572556,1708428723935,-31766.31916757,0.00040103,14]
[314572557,1708428723945,-153.0,0.00040111,7]
[314572558,1708428723954,-17773.93350841,0.00040132,9]
[314572559,1708428723964,-44333.2360378,0.00040132,10]
[314572560,1708428723973,-24608.30415847,0.00040132,10]
[314572561,1708428723983,-336.0,0.00040144,4]
[314572562,1708428723993,-150.0,0.00040155,3]
[314572563,1708428724002,-171.23978354,0.00040155,3]
[314572564,1708428724012,-150.0,0.00040155,3]
[314572565,1708428724022,-171.23978354,0.00040155,3]
[314572566,1708428724031,-150.0,0.00040155,3]
[314572567,1708428724041,-171.23978354,0.00040155,3]
[314572568,1708428724051,-150.0,0.00040155,3]
[314572569,1708428724061,-171.23978354,0.00040155,3]
[314572570,1708428724071,-150.0,0.00040155,3]
[314572571,1708428724080,-171.23978354,0.00040155,3]
[314572572,1708428724090,-150.0,0.00040155,3]